[Event "Titled Tuesday Blitz February 15 Late 2022"]
[White "Bettalli, Francesco"]
[Black "Iskusnyh, Sergei"]
[WhiteFideId "2816453"]
[BlackFideId "4120027"]
[WhiteElo "2216"]
[BlackElo "2492"]
[Result "0-1"]
[Round "03"]
[TimeControl "180+1"]
[Date "2022.02.16"]
[WhiteClock "0:00:08"]
[BlackClock "0:00:06"]

1. d4 {[%clk 0:03:00]}  d5 {[%clk 0:02:59]} 2. Nc3 {[%clk 0:03:00]}  Nf6 {[%clk 0:02:58]} 3. Bf4 {[%clk 0:03:01]}  c5 {[%clk 0:02:57]} 4. e3 {[%clk 0:03:01]}  cxd4 {[%clk 0:02:56]} 5. exd4 {[%clk 0:03:01]}  Bg4 {[%clk 0:02:56]} 6. Qd2 {[%clk 0:02:59]}  Nc6 {[%clk 0:02:46]} 7. f3 {[%clk 0:02:58]}  Bd7 {[%clk 0:02:45]} 8. Nge2 {[%clk 0:02:54]}  e6 {[%clk 0:02:43]} 9. g4 {[%clk 0:02:48]}  Rc8 {[%clk 0:02:41]} 10. h4 {[%clk 0:02:42]}  Na5 {[%clk 0:02:36]} 11. Nc1 {[%clk 0:02:41]}  Nc4 {[%clk 0:02:31]} 12. Bxc4 {[%clk 0:02:40]}  Rxc4 {[%clk 0:02:31]} 13. a3 {[%clk 0:02:28]}  h5 {[%clk 0:02:00]} 14. g5 {[%clk 0:02:26]}  Ng8 {[%clk 0:02:00]} 15. O-O {[%clk 0:02:24]}  g6 {[%clk 0:01:56]} 16. Be5 {[%clk 0:02:16]}  f6 {[%clk 0:01:55]} 17. gxf6 {[%clk 0:02:15]}  Nxf6 {[%clk 0:01:54]} 18. Qg5 {[%clk 0:02:15]}  Kf7 {[%clk 0:01:52]} 19. Nd3 {[%clk 0:02:14]}  Bh6 {[%clk 0:01:50]} 20. Qg3 {[%clk 0:01:57]}  Be3+ {[%clk 0:01:48]} 21. Kh1 {[%clk 0:01:57]}  Rg8 {[%clk 0:01:09]} 22. Bxf6 {[%clk 0:01:05]}  Qxf6 {[%clk 0:01:04]} 23. Ne5+ {[%clk 0:01:05]}  Ke7 {[%clk 0:00:54]} 24. Nxc4 {[%clk 0:01:05]}  dxc4 {[%clk 0:00:54]} 25. Rae1 {[%clk 0:01:05]}  Bf4 {[%clk 0:00:54]} 26. Nd5+ {[%clk 0:01:05]}  Kf7 {[%clk 0:00:44]} 27. Nxf4 {[%clk 0:00:57]}  g5 {[%clk 0:00:43]} 28. hxg5 {[%clk 0:00:54]}  Rxg5 {[%clk 0:00:43]} 29. Qh2 {[%clk 0:00:54]}  Bc6 {[%clk 0:00:43]} 30. Rf2 {[%clk 0:00:31]}  Rf5 {[%clk 0:00:38]} 31. Re4 {[%clk 0:00:22]}  Rg5 {[%clk 0:00:17]} 32. Rxe6 {[%clk 0:00:17]}  Qxd4 {[%clk 0:00:15]} 33. Re1 {[%clk 0:00:12]}  Rf5 {[%clk 0:00:12]} 34. Ng2 {[%clk 0:00:07]}  Qxf2 {[%clk 0:00:11]} 35. Qg1 {[%clk 0:00:04]}  Qxf3 {[%clk 0:00:11]} 36. Re3 {[%clk 0:00:04]}  Qxg2+ {[%clk 0:00:09]} 37. Qxg2 {[%clk 0:00:05]}  Bxg2+ {[%clk 0:00:09]} 38. Kxg2 {[%clk 0:00:05]}  Kf6 {[%clk 0:00:09]} 39. Re4 {[%clk 0:00:06]}  b5 {[%clk 0:00:08]} 40. a4 {[%clk 0:00:06]}  a6 {[%clk 0:00:07]} 41. axb5 {[%clk 0:00:06]}  axb5 {[%clk 0:00:08]} 42. Rd4 {[%clk 0:00:07]}  Re5 {[%clk 0:00:07]} 43. c3 {[%clk 0:00:08]}  Re2+ {[%clk 0:00:06]} 44. Kf3 {[%clk 0:00:08]}  Rxb2 {[%clk 0:00:07]} 45. Rd5 {[%clk 0:00:09]}  h4 {[%clk 0:00:06]} 46. Kg4 {[%clk 0:00:09]}  Ke6 {[%clk 0:00:05]} 47. Rc5 {[%clk 0:00:07]}  Kd6 {[%clk 0:00:05]} 48. Rf5 {[%clk 0:00:08]}  Kc6 {[%clk 0:00:05]} 49. Kxh4 {[%clk 0:00:08]}  Rc2 {[%clk 0:00:05]} 50. Rf3 {[%clk 0:00:08]}  Kb6 {[%clk 0:00:05]} 51. Kg4 {[%clk 0:00:08]}  Ka5 {[%clk 0:00:06]} 52. Kf4 {[%clk 0:00:09]}  Ka4 {[%clk 0:00:06]} 53. Ke4 {[%clk 0:00:08]}  Kb3 {[%clk 0:00:07]} 54. Kd4 {[%clk 0:00:09]}  Rd2+ {[%clk 0:00:07]} 55. Kc5 {[%clk 0:00:09]}  Rd3 {[%clk 0:00:07]} 56. Rf1 {[%clk 0:00:08]}  Kxc3 {[%clk 0:00:07]} 57. Kxb5 {[%clk 0:00:09]}  Rd5+ {[%clk 0:00:06]} 58. Ka4 {[%clk 0:00:09]}  Kc2 {[%clk 0:00:06]} 59. Kb4 {[%clk 0:00:08]}  c3 {[%clk 0:00:05]} 60. Rf3 {[%clk 0:00:07]}  Rd4+ {[%clk 0:00:05]} 61. Kc5 {[%clk 0:00:08]}  Rd3 {[%clk 0:00:05]} 62. Rf2+ {[%clk 0:00:08]}  Kb3 {[%clk 0:00:05]} 63. Rf8 {[%clk 0:00:06]}  c2 {[%clk 0:00:05]} 64. Rb8+ {[%clk 0:00:07]}  Kc3 {[%clk 0:00:06]} 65. Rc8 {[%clk 0:00:07]}  c1=Q {[%clk 0:00:06]} 66. Kb5+ {[%clk 0:00:07]}  Kd2 {[%clk 0:00:06]} 67. Rxc1 {[%clk 0:00:08]}  Kxc1 {[%clk 0:00:06]} 0-1


[Site "https://www.chess.com"]

[Event "Titled Tuesday Blitz February 15 Late 2022"]
[White "Bok, Benjamin"]
[Black "Fedoseev, Vladimir"]
[WhiteFideId "1017063"]
[BlackFideId "24130737"]
[WhiteElo "2658"]
[BlackElo "2726"]
[Result "1/2-1/2"]
[Round "03"]
[TimeControl "180+1"]
[Date "2022.02.15"]
[WhiteClock "0:00:07"]
[BlackClock "0:00:12"]

1. d4 {[%clk 0:03:00]}  Nf6 {[%clk 0:02:59]} 2. c4 {[%clk 0:03:01]}  e6 {[%clk 0:02:59]} 3. Nc3 {[%clk 0:03:01]}  d5 {[%clk 0:02:59]} 4. cxd5 {[%clk 0:03:01]}  exd5 {[%clk 0:03:00]} 5. Bg5 {[%clk 0:03:02]}  c6 {[%clk 0:03:00]} 6. e3 {[%clk 0:03:02]}  Be7 {[%clk 0:03:00]} 7. Bd3 {[%clk 0:03:03]}  Nbd7 {[%clk 0:03:00]} 8. h3 {[%clk 0:03:02]}  Nf8 {[%clk 0:03:01]} 9. Nf3 {[%clk 0:03:01]}  Ne6 {[%clk 0:03:00]} 10. Bh4 {[%clk 0:03:01]}  g6 {[%clk 0:02:54]} 11. O-O {[%clk 0:02:59]}  a5 {[%clk 0:02:54]} 12. a3 {[%clk 0:02:53]}  O-O {[%clk 0:02:53]} 13. Rb1 {[%clk 0:02:53]}  Bd7 {[%clk 0:02:45]} 14. Qc2 {[%clk 0:02:52]}  Ne8 {[%clk 0:02:33]} 15. Bxe7 {[%clk 0:02:46]}  Qxe7 {[%clk 0:02:34]} 16. b4 {[%clk 0:02:47]}  axb4 {[%clk 0:02:30]} 17. axb4 {[%clk 0:02:48]}  b5 {[%clk 0:02:29]} 18. Ne5 {[%clk 0:02:46]}  Nd6 {[%clk 0:02:29]} 19. Ra1 {[%clk 0:02:13]}  f6 {[%clk 0:02:27]} 20. Nxd7 {[%clk 0:01:55]}  Qxd7 {[%clk 0:02:28]} 21. Ra2 {[%clk 0:01:56]}  Rxa2 {[%clk 0:02:23]} 22. Qxa2 {[%clk 0:01:55]}  Nc7 {[%clk 0:02:24]} 23. Ra1 {[%clk 0:01:44]}  Rb8 {[%clk 0:02:22]} 24. Qb3 {[%clk 0:01:40]}  Nc4 {[%clk 0:02:17]} 25. Ra7 {[%clk 0:01:34]}  Qc8 {[%clk 0:02:15]} 26. Qa2 {[%clk 0:01:27]}  Rb6 {[%clk 0:02:11]} 27. e4 {[%clk 0:01:06]}  Ra6 {[%clk 0:02:03]} 28. Rxa6 {[%clk 0:01:04]}  Nxa6 {[%clk 0:02:03]} 29. exd5 {[%clk 0:00:57]}  Nxb4 {[%clk 0:02:02]} 30. Qb1 {[%clk 0:00:57]}  Nxd3 {[%clk 0:01:56]} 31. Qxd3 {[%clk 0:00:58]}  cxd5 {[%clk 0:01:25]} 32. Nxb5 {[%clk 0:00:58]}  Qe8 {[%clk 0:01:24]} 33. Nc3 {[%clk 0:00:52]}  Qe1+ {[%clk 0:01:24]} 34. Kh2 {[%clk 0:00:53]}  Nd2 {[%clk 0:01:15]} 35. Qe2 {[%clk 0:00:33]}  Nf1+ {[%clk 0:00:43]} 36. Kg1 {[%clk 0:00:33]}  Qxc3 {[%clk 0:00:43]} 37. Qe8+ {[%clk 0:00:34]}  Kg7 {[%clk 0:00:43]} 38. Qe7+ {[%clk 0:00:35]}  Kh6 {[%clk 0:00:43]} 39. Qxf6 {[%clk 0:00:18]}  Qc1 {[%clk 0:00:11]} 40. Qh4+ {[%clk 0:00:14]}  Kg7 {[%clk 0:00:12]} 41. Qe7+ {[%clk 0:00:15]}  Kh6 {[%clk 0:00:12]} 42. Qh4+ {[%clk 0:00:12]}  Kg7 {[%clk 0:00:12]} 43. Qe7+ {[%clk 0:00:13]}  Kh6 {[%clk 0:00:12]} 44. Qh4+ {[%clk 0:00:07]} 1/2-1/2


[Site "https://www.chess.com"]

[Event "Titled Tuesday Blitz February 15 Late 2022"]
[White "Bon, Michael"]
[Black "Hakemi, Arman"]
[WhiteFideId "620696"]
[BlackFideId "22520805"]
[WhiteElo "2440"]
[BlackElo "2208"]
[Result "1-0"]
[Round "03"]
[TimeControl "180+1"]
[Date "2022.02.16"]
[WhiteClock "0:00:27"]
[BlackClock "0:00:14"]

1. e4 {[%clk 0:03:00]}  c5 {[%clk 0:02:59]} 2. Nf3 {[%clk 0:02:58]}  e6 {[%clk 0:02:59]} 3. d4 {[%clk 0:02:58]}  cxd4 {[%clk 0:03:00]} 4. Nxd4 {[%clk 0:02:59]}  Nc6 {[%clk 0:03:00]} 5. Nc3 {[%clk 0:02:58]}  Qc7 {[%clk 0:03:00]} 6. Be3 {[%clk 0:02:58]}  a6 {[%clk 0:03:01]} 7. Bd3 {[%clk 0:02:58]}  Nf6 {[%clk 0:02:54]} 8. O-O {[%clk 0:02:57]}  b5 {[%clk 0:02:52]} 9. Nxc6 {[%clk 0:02:53]}  Qxc6 {[%clk 0:02:53]} 10. f3 {[%clk 0:02:50]}  b4 {[%clk 0:02:50]} 11. Ne2 {[%clk 0:02:20]}  Bc5 {[%clk 0:02:50]} 12. Qd2 {[%clk 0:02:20]}  a5 {[%clk 0:02:48]} 13. Kh1 {[%clk 0:02:18]}  O-O {[%clk 0:02:32]} 14. Ng3 {[%clk 0:01:44]}  d6 {[%clk 0:02:20]} 15. Rae1 {[%clk 0:01:36]}  Bb7 {[%clk 0:02:09]} 16. f4 {[%clk 0:01:30]}  Rad8 {[%clk 0:01:51]} 17. Bxc5 {[%clk 0:01:19]}  dxc5 {[%clk 0:01:51]} 18. Qe2 {[%clk 0:01:13]}  Nd7 {[%clk 0:01:47]} 19. e5 {[%clk 0:01:05]}  Nb6 {[%clk 0:01:45]} 20. f5 {[%clk 0:01:03]}  c4 {[%clk 0:01:39]} 21. Be4 {[%clk 0:01:00]}  Qc7 {[%clk 0:01:40]} 22. Bxb7 {[%clk 0:00:50]}  Qxb7 {[%clk 0:01:39]} 23. f6 {[%clk 0:00:51]}  g6 {[%clk 0:01:38]} 24. Qe3 {[%clk 0:00:47]}  Kh8 {[%clk 0:01:35]} 25. Rf4 {[%clk 0:00:45]}  Nd5 {[%clk 0:01:29]} 26. Qf3 {[%clk 0:00:43]}  Qc7 {[%clk 0:01:19]} 27. Rh4 {[%clk 0:00:42]}  Qc5 {[%clk 0:00:18]} 28. Qg4 {[%clk 0:00:33]}  Rfe8 {[%clk 0:00:18]} 29. Qh3 {[%clk 0:00:31]}  h5 {[%clk 0:00:14]} 30. Rxh5+ {[%clk 0:00:27]} 1-0


[Site "https://www.chess.com"]

[Event "Titled Tuesday Blitz February 15 Late 2022"]
[White "Brunner, Nicolas"]
[Black "Demchenko, Anton"]
[WhiteFideId "620246"]
[BlackFideId "4160258"]
[WhiteElo "2372"]
[BlackElo "2539"]
[Result "0-1"]
[Round "03"]
[TimeControl "180+1"]
[Date "2022.02.16"]
[WhiteClock "0:00:19"]
[BlackClock "0:00:45"]

1. d4 {[%clk 0:03:00]}  Nf6 {[%clk 0:03:00]} 2. c4 {[%clk 0:03:00]}  d6 {[%clk 0:03:00]} 3. Nf3 {[%clk 0:02:58]}  Nbd7 {[%clk 0:03:01]} 4. Nc3 {[%clk 0:02:58]}  e5 {[%clk 0:03:02]} 5. e4 {[%clk 0:02:58]}  Be7 {[%clk 0:03:03]} 6. Be2 {[%clk 0:02:58]}  c6 {[%clk 0:03:03]} 7. O-O {[%clk 0:02:58]}  Qc7 {[%clk 0:03:04]} 8. Be3 {[%clk 0:02:52]}  Nf8 {[%clk 0:03:03]} 9. d5 {[%clk 0:02:47]}  Ng6 {[%clk 0:03:03]} 10. g3 {[%clk 0:02:46]}  Bh3 {[%clk 0:02:57]} 11. Re1 {[%clk 0:02:45]}  h6 {[%clk 0:02:58]} 12. Rc1 {[%clk 0:02:38]}  O-O {[%clk 0:02:54]} 13. b4 {[%clk 0:02:35]}  a5 {[%clk 0:02:49]} 14. dxc6 {[%clk 0:02:27]}  bxc6 {[%clk 0:02:45]} 15. b5 {[%clk 0:02:27]}  Ng4 {[%clk 0:02:42]} 16. bxc6 {[%clk 0:02:12]}  Nxe3 {[%clk 0:02:40]} 17. fxe3 {[%clk 0:02:12]}  Qxc6 {[%clk 0:02:37]} 18. Nd5 {[%clk 0:02:11]}  Qc5 {[%clk 0:02:32]} 19. Rb1 {[%clk 0:01:59]}  Rab8 {[%clk 0:02:21]} 20. Qa4 {[%clk 0:01:59]}  Be6 {[%clk 0:02:07]} 21. Rb5 {[%clk 0:01:49]}  Rxb5 {[%clk 0:02:07]} 22. Qxb5 {[%clk 0:01:49]}  Qa7 {[%clk 0:02:08]} 23. Bd3 {[%clk 0:01:28]}  Rb8 {[%clk 0:02:00]} 24. Qa4 {[%clk 0:01:26]}  Bd7 {[%clk 0:01:46]} 25. Qc2 {[%clk 0:01:21]}  Bg4 {[%clk 0:01:46]} 26. Nd2 {[%clk 0:01:15]}  Bd8 {[%clk 0:01:44]} 27. Rb1 {[%clk 0:01:12]}  Rxb1+ {[%clk 0:01:23]} 28. Qxb1 {[%clk 0:01:11]}  Be6 {[%clk 0:01:24]} 29. Kf2 {[%clk 0:01:09]}  Bg5 {[%clk 0:01:18]} 30. Nf1 {[%clk 0:01:07]}  Nf8 {[%clk 0:01:08]} 31. h4 {[%clk 0:01:02]}  Bd8 {[%clk 0:01:07]} 32. Bc2 {[%clk 0:00:31]}  Nd7 {[%clk 0:01:01]} 33. Ba4 {[%clk 0:00:28]}  Nc5 {[%clk 0:00:56]} 34. Bb5 {[%clk 0:00:26]}  a4 {[%clk 0:00:54]} 35. Nd2 {[%clk 0:00:24]}  Qa5 {[%clk 0:00:52]} 36. Qb4 {[%clk 0:00:19]}  Nd3+ {[%clk 0:00:45]} 0-1


[Site "https://www.chess.com"]

[Event "Titled Tuesday Blitz February 15 Late 2022"]
[White "Degardin, Sylvain"]
[Black "Martinez Ramirez, Lennis"]
[WhiteFideId "20623070"]
[BlackFideId "3509079"]
[WhiteElo "2156"]
[BlackElo "2374"]
[Result "1-0"]
[Round "03"]
[TimeControl "180+1"]
[Date "2022.02.16"]
[WhiteClock "0:00:12"]
[BlackClock "0:00:01"]

1. d4 {[%clk 0:02:56]}  Nf6 {[%clk 0:02:59]} 2. c4 {[%clk 0:02:56]}  e6 {[%clk 0:02:59]} 3. Nf3 {[%clk 0:02:56]}  b6 {[%clk 0:02:59]} 4. g3 {[%clk 0:02:56]}  Ba6 {[%clk 0:02:59]} 5. Qa4 {[%clk 0:02:53]}  c5 {[%clk 0:02:48]} 6. dxc5 {[%clk 0:02:52]}  bxc5 {[%clk 0:02:42]} 7. Bg2 {[%clk 0:02:50]}  Bb7 {[%clk 0:02:42]} 8. O-O {[%clk 0:02:50]}  Be7 {[%clk 0:02:42]} 9. Nc3 {[%clk 0:02:45]}  O-O {[%clk 0:02:41]} 10. Rd1 {[%clk 0:02:45]}  Qb6 {[%clk 0:02:40]} 11. Bf4 {[%clk 0:02:38]}  Nc6 {[%clk 0:02:37]} 12. Rd2 {[%clk 0:02:25]}  Nd4 {[%clk 0:02:16]} 13. Nxd4 {[%clk 0:02:12]}  Bxg2 {[%clk 0:02:15]} 14. Kxg2 {[%clk 0:02:07]}  cxd4 {[%clk 0:02:15]} 15. Nb5 {[%clk 0:02:06]}  Qc6+ {[%clk 0:01:46]} 16. Kg1 {[%clk 0:02:00]}  a6 {[%clk 0:01:46]} 17. Rxd4 {[%clk 0:01:40]}  axb5 {[%clk 0:01:44]} 18. Qxb5 {[%clk 0:01:41]}  Qxb5 {[%clk 0:01:41]} 19. cxb5 {[%clk 0:01:42]}  Nd5 {[%clk 0:01:40]} 20. Bd2 {[%clk 0:01:36]}  Rfb8 {[%clk 0:01:40]} 21. e4 {[%clk 0:00:57]}  Bf6 {[%clk 0:01:39]} 22. Rd3 {[%clk 0:00:55]}  Nb6 {[%clk 0:01:39]} 23. Rb3 {[%clk 0:00:53]}  Na4 {[%clk 0:01:32]} 24. Bf4 {[%clk 0:00:51]}  Rb7 {[%clk 0:01:31]} 25. Rc1 {[%clk 0:00:49]}  Bxb2 {[%clk 0:01:25]} 26. Rc7 {[%clk 0:00:46]}  Rbb8 {[%clk 0:01:02]} 27. Rxd7 {[%clk 0:00:45]}  e5 {[%clk 0:01:02]} 28. Be3 {[%clk 0:00:44]}  Bd4 {[%clk 0:00:52]} 29. Bxd4 {[%clk 0:00:44]}  exd4 {[%clk 0:00:53]} 30. Rxd4 {[%clk 0:00:45]}  Nc5 {[%clk 0:00:52]} 31. Rb2 {[%clk 0:00:42]}  Rb6 {[%clk 0:00:52]} 32. Rc4 {[%clk 0:00:40]}  Ne6 {[%clk 0:00:34]} 33. a4 {[%clk 0:00:37]}  Kf8 {[%clk 0:00:34]} 34. Rd2 {[%clk 0:00:35]}  Ke7 {[%clk 0:00:34]} 35. Rd5 {[%clk 0:00:34]}  g5 {[%clk 0:00:29]} 36. Rb4 {[%clk 0:00:31]}  Ra5 {[%clk 0:00:27]} 37. Kg2 {[%clk 0:00:29]}  h6 {[%clk 0:00:23]} 38. Rc4 {[%clk 0:00:29]}  Rb8 {[%clk 0:00:21]} 39. b6 {[%clk 0:00:26]}  Rxd5 {[%clk 0:00:12]} 40. exd5 {[%clk 0:00:27]}  Nd8 {[%clk 0:00:12]} 41. a5 {[%clk 0:00:23]}  Ra8 {[%clk 0:00:13]} 42. Rc7+ {[%clk 0:00:21]}  Kd6 {[%clk 0:00:12]} 43. b7 {[%clk 0:00:19]}  Rb8 {[%clk 0:00:12]} 44. Rc8 {[%clk 0:00:17]}  Rxb7 {[%clk 0:00:04]} 45. Rxd8+ {[%clk 0:00:17]}  Kc5 {[%clk 0:00:04]} 46. Rh8 {[%clk 0:00:14]}  Kxd5 {[%clk 0:00:03]} 47. Rxh6 {[%clk 0:00:13]}  Ra7 {[%clk 0:00:03]} 48. a6 {[%clk 0:00:13]}  Kc5 {[%clk 0:00:03]} 49. Rf6 {[%clk 0:00:12]}  Kb5 {[%clk 0:00:03]} 50. Kf3 {[%clk 0:00:12]}  Rc7 {[%clk 0:00:01]} 51. Kg4 {[%clk 0:00:12]} 1-0


[Site "https://www.chess.com"]

[Event "Titled Tuesday Blitz February 15 Late 2022"]
[White "Djordjevic, Vuk"]
[Black "Yedidia, Daniel"]
[WhiteFideId "902098"]
[BlackFideId "30905907"]
[WhiteElo "2463"]
[BlackElo "2490"]
[Result "1-0"]
[Round "03"]
[TimeControl "180+1"]
[Date "2022.02.16"]
[WhiteClock "0:01:15"]
[BlackClock "0:00:36"]

1. d4 {[%clk 0:03:00]}  Nf6 {[%clk 0:02:59]} 2. Bg5 {[%clk 0:03:01]}  c5 {[%clk 0:02:59]} 3. Bxf6 {[%clk 0:03:01]}  gxf6 {[%clk 0:02:59]} 4. dxc5 {[%clk 0:03:01]}  Qa5+ {[%clk 0:02:55]} 5. c3 {[%clk 0:03:01]}  Qxc5 {[%clk 0:02:55]} 6. Nd2 {[%clk 0:03:02]}  Qc7 {[%clk 0:02:54]} 7. g3 {[%clk 0:03:02]}  Nc6 {[%clk 0:02:54]} 8. Bg2 {[%clk 0:03:02]}  d6 {[%clk 0:02:55]} 9. Ngf3 {[%clk 0:03:03]}  Bd7 {[%clk 0:02:46]} 10. O-O {[%clk 0:03:02]}  Bg7 {[%clk 0:02:43]} 11. Nc4 {[%clk 0:03:01]}  f5 {[%clk 0:02:21]} 12. e4 {[%clk 0:02:55]}  fxe4 {[%clk 0:02:19]} 13. Ng5 {[%clk 0:02:55]}  h6 {[%clk 0:02:13]} 14. Nxe4 {[%clk 0:02:53]}  O-O-O {[%clk 0:02:08]} 15. Ncxd6+ {[%clk 0:02:49]}  exd6 {[%clk 0:02:08]} 16. Nxd6+ {[%clk 0:02:50]}  Kb8 {[%clk 0:02:09]} 17. Nxf7 {[%clk 0:02:50]}  Bg4 {[%clk 0:01:29]} 18. Qxg4 {[%clk 0:02:49]}  Qxf7 {[%clk 0:01:28]} 19. Rad1 {[%clk 0:02:44]}  Rxd1 {[%clk 0:01:23]} 20. Rxd1 {[%clk 0:02:44]}  Rd8 {[%clk 0:01:22]} 21. Rxd8+ {[%clk 0:02:06]}  Nxd8 {[%clk 0:01:22]} 22. Qb4 {[%clk 0:01:59]}  Be5 {[%clk 0:01:09]} 23. Be4 {[%clk 0:01:45]}  Bc7 {[%clk 0:01:05]} 24. a4 {[%clk 0:01:38]}  Bb6 {[%clk 0:01:05]} 25. Qd6+ {[%clk 0:01:34]}  Ka8 {[%clk 0:01:04]} 26. Qd2 {[%clk 0:01:31]}  a6 {[%clk 0:01:01]} 27. b4 {[%clk 0:01:30]}  Qe8 {[%clk 0:00:46]} 28. a5 {[%clk 0:01:18]}  Bxf2+ {[%clk 0:00:40]} 29. Kxf2 {[%clk 0:01:16]}  Qxe4 {[%clk 0:00:36]} 30. Qxd8+ {[%clk 0:01:15]}  Ka7 {[%clk 0:00:36]} 31. Qd4+ {[%clk 0:01:15]} 1-0


[Site "https://www.chess.com"]

[Event "Titled Tuesday Blitz February 15 Late 2022"]
[White "Dovbnia, Nikita"]
[Black "Polanco Nunez, Yoel Estarling"]
[WhiteFideId "54104599"]
[BlackFideId "6401783"]
[WhiteElo "2111"]
[BlackElo "2132"]
[Result "1-0"]
[Round "03"]
[TimeControl "180+1"]
[Date "2022.02.16"]
[WhiteClock "0:01:09"]
[BlackClock "0:00:28"]

1. d4 {[%clk 0:02:59]}  d5 {[%clk 0:02:59]} 2. Nc3 {[%clk 0:02:58]}  Nf6 {[%clk 0:02:58]} 3. Bf4 {[%clk 0:02:58]}  e6 {[%clk 0:02:44]} 4. e3 {[%clk 0:02:58]}  Bb4 {[%clk 0:02:43]} 5. Bd3 {[%clk 0:02:57]}  c5 {[%clk 0:02:42]} 6. Qf3 {[%clk 0:02:52]}  Nc6 {[%clk 0:02:34]} 7. dxc5 {[%clk 0:02:45]}  Bxc3+ {[%clk 0:02:29]} 8. bxc3 {[%clk 0:02:45]}  Qa5 {[%clk 0:02:30]} 9. Ne2 {[%clk 0:02:45]}  Qxc5 {[%clk 0:02:28]} 10. O-O {[%clk 0:02:43]}  e5 {[%clk 0:02:06]} 11. Qg3 {[%clk 0:02:12]}  Nh5 {[%clk 0:01:58]} 12. Qg5 {[%clk 0:02:06]}  Nxf4 {[%clk 0:01:55]} 13. exf4 {[%clk 0:02:05]}  e4 {[%clk 0:01:51]} 14. Bxe4 {[%clk 0:02:04]}  O-O {[%clk 0:01:41]} 15. Qxd5 {[%clk 0:01:58]}  Qe7 {[%clk 0:01:39]} 16. Nd4 {[%clk 0:01:54]}  Bd7 {[%clk 0:01:32]} 17. Rfe1 {[%clk 0:01:46]}  Qd8 {[%clk 0:01:14]} 18. Nxc6 {[%clk 0:01:43]}  bxc6 {[%clk 0:01:09]} 19. Qd3 {[%clk 0:01:41]}  f5 {[%clk 0:01:02]} 20. Rad1 {[%clk 0:01:30]}  Be6 {[%clk 0:00:48]} 21. Bxc6 {[%clk 0:01:27]}  Qxd3 {[%clk 0:00:41]} 22. Rxd3 {[%clk 0:01:26]}  Bxa2 {[%clk 0:00:42]} 23. Bxa8 {[%clk 0:01:26]}  Rxa8 {[%clk 0:00:41]} 24. Re7 {[%clk 0:01:24]}  Rb8 {[%clk 0:00:32]} 25. g3 {[%clk 0:01:20]}  Bc4 {[%clk 0:00:31]} 26. Rdd7 {[%clk 0:01:09]}  Rb1+ {[%clk 0:00:29]} 27. Kg2 {[%clk 0:01:10]}  Bf1+ {[%clk 0:00:28]} 28. Kf3 {[%clk 0:01:09]} 1-0


[Site "https://www.chess.com"]

[Event "Titled Tuesday Blitz February 15 Late 2022"]
[White "Ezat, Mohamed"]
[Black "Iljin, Timofey"]
[WhiteFideId "10600906"]
[BlackFideId "14110180"]
[WhiteElo "2386"]
[BlackElo "2396"]
[Result "0-1"]
[Round "03"]
[TimeControl "180+1"]
[Date "2022.02.16"]
[WhiteClock "0:00:08"]
[BlackClock "0:00:07"]

1. d4 {[%clk 0:03:00]}  d5 {[%clk 0:02:58]} 2. c4 {[%clk 0:02:59]}  e6 {[%clk 0:02:58]} 3. Nc3 {[%clk 0:02:58]}  Bb4 {[%clk 0:02:58]} 4. e3 {[%clk 0:02:55]}  Nf6 {[%clk 0:02:57]} 5. a3 {[%clk 0:02:51]}  Bxc3+ {[%clk 0:02:57]} 6. bxc3 {[%clk 0:02:26]}  c5 {[%clk 0:02:58]} 7. cxd5 {[%clk 0:02:25]}  exd5 {[%clk 0:02:59]} 8. Bd3 {[%clk 0:02:25]}  O-O {[%clk 0:02:59]} 9. f3 {[%clk 0:02:24]}  Nc6 {[%clk 0:03:00]} 10. Ne2 {[%clk 0:02:24]}  Bd7 {[%clk 0:03:00]} 11. O-O {[%clk 0:02:24]}  Re8 {[%clk 0:03:00]} 12. Ng3 {[%clk 0:02:23]}  Rc8 {[%clk 0:03:00]} 13. Ra2 {[%clk 0:02:21]}  cxd4 {[%clk 0:02:45]} 14. cxd4 {[%clk 0:02:19]}  Na5 {[%clk 0:02:46]} 15. e4 {[%clk 0:02:19]}  Qb6 {[%clk 0:02:45]} 16. Bc2 {[%clk 0:02:00]}  Nc4 {[%clk 0:02:43]} 17. Kh1 {[%clk 0:01:55]}  dxe4 {[%clk 0:02:14]} 18. fxe4 {[%clk 0:01:53]}  Ng4 {[%clk 0:02:14]} 19. Qf3 {[%clk 0:01:43]}  Qxd4 {[%clk 0:01:37]} 20. Qxf7+ {[%clk 0:01:41]}  Kh8 {[%clk 0:01:37]} 21. Ne2 {[%clk 0:01:00]}  Qd6 {[%clk 0:01:05]} 22. Bf4 {[%clk 0:00:57]}  Qe6 {[%clk 0:01:04]} 23. Qxe6 {[%clk 0:00:53]}  Bxe6 {[%clk 0:01:05]} 24. Bb3 {[%clk 0:00:49]}  Nce3 {[%clk 0:00:51]} 25. Bxe6 {[%clk 0:00:48]}  Rxe6 {[%clk 0:00:52]} 26. Bxe3 {[%clk 0:00:40]}  Nxe3 {[%clk 0:00:53]} 27. Rf3 {[%clk 0:00:34]}  Rxe4 {[%clk 0:00:48]} 28. h3 {[%clk 0:00:34]}  Re7 {[%clk 0:00:41]} 29. Ng3 {[%clk 0:00:32]}  Rce8 {[%clk 0:00:37]} 30. Re2 {[%clk 0:00:30]}  g6 {[%clk 0:00:37]} 31. Rd2 {[%clk 0:00:25]}  Kg7 {[%clk 0:00:35]} 32. Kh2 {[%clk 0:00:22]}  h5 {[%clk 0:00:35]} 33. Nh1 {[%clk 0:00:20]}  Nc4 {[%clk 0:00:28]} 34. Rc2 {[%clk 0:00:18]}  Ne5 {[%clk 0:00:29]} 35. Rfc3 {[%clk 0:00:18]}  Nc6 {[%clk 0:00:20]} 36. Nf2 {[%clk 0:00:17]}  Re3 {[%clk 0:00:20]} 37. Nd3 {[%clk 0:00:16]}  Kh6 {[%clk 0:00:14]} 38. Nc5 {[%clk 0:00:16]}  b6 {[%clk 0:00:10]} 39. Nd7 {[%clk 0:00:13]}  Nd4 {[%clk 0:00:10]} 40. Rxe3 {[%clk 0:00:12]}  Rxe3 {[%clk 0:00:10]} 41. Rc8 {[%clk 0:00:12]}  Rxa3 {[%clk 0:00:09]} 42. Rg8 {[%clk 0:00:07]}  h4 {[%clk 0:00:06]} 43. Ne5 {[%clk 0:00:06]}  Rg3 {[%clk 0:00:06]} 44. Ra8 {[%clk 0:00:04]}  a5 {[%clk 0:00:05]} 45. Ra7 {[%clk 0:00:03]}  b5 {[%clk 0:00:04]} 46. Nf7+ {[%clk 0:00:04]}  Kg7 {[%clk 0:00:02]} 47. Nd6+ {[%clk 0:00:04]}  Kf6 {[%clk 0:00:02]} 48. Ne4+ {[%clk 0:00:05]}  Ke5 {[%clk 0:00:02]} 49. Nxg3 {[%clk 0:00:06]}  hxg3+ {[%clk 0:00:03]} 50. Kxg3 {[%clk 0:00:06]}  a4 {[%clk 0:00:03]} 51. Ra6 {[%clk 0:00:06]}  g5 {[%clk 0:00:03]} 52. h4 {[%clk 0:00:07]}  gxh4+ {[%clk 0:00:02]} 53. Kxh4 {[%clk 0:00:07]}  Kd5 {[%clk 0:00:03]} 54. g4 {[%clk 0:00:08]}  Kc4 {[%clk 0:00:03]} 55. g5 {[%clk 0:00:08]}  Nf3+ {[%clk 0:00:03]} 56. Kg4 {[%clk 0:00:08]}  Nxg5 {[%clk 0:00:04]} 57. Kxg5 {[%clk 0:00:09]}  Kb3 {[%clk 0:00:05]} 58. Kf4 {[%clk 0:00:10]}  a3 {[%clk 0:00:05]} 59. Ke3 {[%clk 0:00:10]}  b4 {[%clk 0:00:03]} 60. Kd2 {[%clk 0:00:10]}  Kb2 {[%clk 0:00:03]} 61. Ra4 {[%clk 0:00:10]}  b3 {[%clk 0:00:03]} 62. Kd1 {[%clk 0:00:09]}  a2 {[%clk 0:00:03]} 63. Kd2 {[%clk 0:00:06]}  a1=Q {[%clk 0:00:04]} 64. Rxa1 {[%clk 0:00:06]}  Kxa1 {[%clk 0:00:05]} 65. Kc3 {[%clk 0:00:07]}  b2 {[%clk 0:00:06]} 66. Kb3 {[%clk 0:00:07]}  b1=Q+ {[%clk 0:00:07]} 67. Ka3 {[%clk 0:00:08]}  Qb6 {[%clk 0:00:06]} 68. Ka4 {[%clk 0:00:07]}  Qb7 {[%clk 0:00:06]} 69. Ka5 {[%clk 0:00:07]}  Kb2 {[%clk 0:00:05]} 70. Ka4 {[%clk 0:00:07]}  Kc3 {[%clk 0:00:06]} 71. Ka5 {[%clk 0:00:08]}  Kc4 {[%clk 0:00:06]} 72. Ka4 {[%clk 0:00:08]}  Qa8# {[%clk 0:00:07]} 0-1


[Site "https://www.chess.com"]